fUSD/lending_fUSD_20240808
["ID","MTS","AMOUNT","RATE_DAILY","PERIOD"]
[334486956,1723158659352,-241.01,0.00024498,5]
[334486957,1723158659362,-500.0,0.00024498,5]
[334486958,1723158659371,-470.39366675,0.00024498,5]
[334486959,1723158659384,-29.60633325,0.00024498,5]
[334486960,1723158659394,-213.99,0.00024498,5]
[334486961,1723158659403,-759.48,0.00024498,5]
[334486962,1723158659412,-759.48,0.00024498,5]
[334486963,1723158659422,-759.48,0.00024498,5]
[334486964,1723158659431,-360.018882,0.00024498,7]
[334486965,1723158659441,-360.018882,0.00024498,7]
[334486966,1723158659451,-500.0,0.00024498,5]
[334486967,1723158659461,-500.0,0.00024498,5]
[334486968,1723158659471,-500.0,0.00024498,5]
[334486969,1723158659481,-456.09224927,0.00024498,5]
[334486970,1723158659905,-500.0,0.00024109,5]
[334486971,1723158659914,-500.0,0.00024109,5]
[334486972,1723158659923,-151.0,0.00024109,7]
[334486973,1723158659933,-181.41,0.00024109,5]
[334486974,1723158660053,-151.0,0.00024109,7]
[334486975,1723158660063,-151.0,0.00024109,7]
[334486976,1723158660074,-500.0,0.00024109,5]
[334486977,1723158660083,-151.0,0.00024109,7]
[334486978,1723158660093,-151.0,0.00024109,7]
[334486979,1723158660103,-500.0,0.00024109,5]
[334486980,1723158660112,-393.8214811,0.00024109,5]
[334486981,1723158660124,-106.1785189,0.00024109,5]
[334486982,1723158660133,-601.43,0.00024109,5]
[334486983,1723158660143,-846.91,0.00024124,2]
[334486984,1723158660153,-133.46258304,0.00024124,2]
[334486985,1723158660165,-17.52741696,0.00024124,2]
[334486986,1723158660175,-151.0,0.00024299,7]
[334486987,1723158660184,-420.82,0.00024493,2]
[334486988,1723158660194,-53.9611645,0.00024498,5]
[334486989,1723158660204,-500.0,0.00024498,5]
[334486990,1723158660213,-500.0,0.00024498,5]
[334486991,1723158660223,-405.85,0.00024498,5]
[334486992,1723158660234,-500.0,0.00024498,5]
[334486993,1723158660244,-511.69,0.00024498,5]
[334486994,1723158660254,-500.0,0.00024498,5]
[334486995,1723158660264,-511.69,0.00024498,5]
[334486996,1723158660274,-500.0,0.00024498,5]
[334486997,1723158660284,-483.46,0.00024498,5]
[334486998,1723158660294,-500.0,0.00024498,5]
[334486999,1723158660305,-500.0,0.00024498,5]
[334487000,1723158660315,-500.0,0.00024498,5]
[334487001,1723158660326,-500.0,0.00024498,5]
[334487002,1723158660336,-500.0,0.00024498,5]
[334487003,1723158660346,-500.0,0.00024498,5]
[334487004,1723158660357,-500.0,0.00024498,5]
[334487005,1723158660366,-500.0,0.00024498,5]
[334487006,1723158660376,-955.16,0.00024498,5]
[334487007,1723158660386,-955.16,0.00024498,5]
[334487008,1723158660395,-955.16,0.00024498,5]
[334487009,1723158660405,-585.12141855,0.00024498,5]
[334487010,1723158660417,-1543.81858145,0.00024498,5]
[334487011,1723158660428,-2128.94,0.00024498,5]
[334487012,1723158660437,-318.8495974,0.00024498,5]
[334487013,1723158660447,-500.0,0.00024498,5]
[334487014,1723158660457,-500.0,0.00024498,5]
[334487015,1723158660466,-195.00854391,0.00024498,5]
[334487016,1723158660476,-500.0,0.00024498,5]
[334487017,1723158660486,-500.0,0.00024498,5]
[334487018,1723158660495,-500.0,0.00024498,5]
[334487019,1723158660505,-500.0,0.00024498,5]
[334487020,1723158660515,-500.0,0.00024498,5]
[334487021,1723158660525,-500.0,0.00024498,5]
[334487022,1723158660535,-500.0,0.00024498,5]
[334487023,1723158660548,-500.0,0.00024498,5]
[334487024,1723158660558,-500.0,0.00024498,5]
[334487025,1723158660567,-500.0,0.00024498,5]
[334487026,1723158660577,-500.0,0.00024498,5]
[334487027,1723158660587,-3708.17,0.00024498,5]
[334487028,1723158660596,-3708.17,0.00024498,5]
[334487029,1723158660606,-3708.17,0.00024498,5]
[334487030,1723158660616,-500.0,0.00024498,5]
[334487031,1723158660626,-500.0,0.00024498,5]
[334487032,1723158660640,-151.0,0.00024498,7]
[334487033,1723158660649,-151.0,0.00024498,7]
[334487034,1723158660659,-6910.0060454,0.00024499,9]
[334487035,1723158660671,-300.0,0.00024499,9]
[334487036,1723158660683,-7099.88763716,0.00024499,9]
[334487037,1723158660695,-9234.37835651,0.00024499,9]
[334487038,1723158660711,-420.82,0.00024493,2]
[334487039,1723158660721,-29.18,0.00024499,9]
[334487040,1723158660734,-655.28,0.00024499,9]
[334487041,1723158660835,-120074.22353226,0.00024499,9]
[334487042,1723158660846,-1774.24968105,0.00024499,9]
[334487043,1723158660858,-7767.81612531,0.00024499,9]
[334487044,1723158660880,-250.71800718,0.00024499,9]
[334487045,1723158798128,-8134.77085207,0.00027,120]
[334487046,1723158798203,-153.41,0.000249,31]
[334487047,1723158798229,-153.41,0.000249,31]
[334487048,1723158798255,-153.41,0.000249,31]
[334487049,1723158798280,-153.41,0.000249,31]
[334487050,1723158798306,-51.9543624,0.000249,31]
[334487051,1723158798378,-101.4556376,0.000249,31]
[334487052,1723158798403,-153.41,0.000249,31]
[334487053,1723158798433,-153.41,0.000249,31]
[334487054,1723158798459,-153.41,0.000249,31]
[334487055,1723158798484,-62.40914793,0.00025,30]
[334487057,1723159111429,181.62,0.00025585,120]
[334487058,1723159275803,2478.8,0.00011001,2]
[334487062,1723159508409,5671.2,0.00011,2]
[334487063,1723159508438,2207127.33817246,0.00011,2]
[334487067,1723159554083,4420.42825061,0.00011,2]
[334487080,1723159683222,421516.55049973,0.00011,2]
[334487100,1723159832346,-586.0,0.0001192,2]
[334487101,1723159832356,-562.44979199,0.00012995,2]
[334487102,1723159832365,-550.0,0.00013,2]
[334487103,1723159832374,-921.25059334,0.00013,2]
[334487104,1723159832383,-292.0,0.00013065,2]
[334487105,1723159832392,-197.06953183,0.00013066,2]
[334487106,1723159832401,-155.08623708,0.00013125,2]
[334487107,1723159832410,-347.51057262,0.00013302,2]
[334487108,1723159832419,-1000.0,0.00013333,2]
[334487109,1723159832428,-499.99,0.00013333,2]
[334487110,1723159832438,-1351.85,0.00013333,2]
[334487111,1723159832448,-184.23725183,0.0001372,2]
[334487112,1723159832457,-155.0,0.00013825,2]
[334487113,1723159832466,-179.372879,0.00013859,2]
[334487114,1723159832475,-222.73,0.00013896,2]
[334487115,1723159832484,-164.64,0.00013973,2]
[334487116,1723159832493,-150.0,0.00013985,2]
[334487117,1723159832502,-150.99,0.00013986,2]
[334487118,1723159832511,-150.99,0.00013986,2]
[334487119,1723159832520,-8791.71215718,0.00013986,2]
[334487120,1723159833292,-345.80403217,0.00013,2]
[334487121,1723159833341,-180.6707058,0.00013,2]
[334487122,1723159833352,-644.87179231,0.00013986,2]
[334487123,1723159833364,-321.34377558,0.00013986,2]
[334487124,1723159833375,-619.14994573,0.00013986,2]
[334487125,1723159833396,-441.6123292,0.00013986,2]
[334487126,1723159833406,-274.57641746,0.00013986,2]
[334487127,1723159833446,-936.60358254,0.00013986,2]
[334487128,1723159833456,-3145.45492852,0.00015,7]
[334487129,1723159833467,-1328.81576721,0.00015,7]
[334487130,1723159833477,-600.0,0.00015,2]
[334487131,1723159833487,-3145.53,0.00015,2]
[334487133,1723159833496,-255.0,0.00015104,2]
[334487135,1723159833506,-433.0,0.00016307,2]
[334487137,1723159833516,-254.79,0.00017157,2]
[334487139,1723159833525,-860.49,0.0001726,2]
[334487141,1723159833535,-959.1,0.00018469,2]
[334487143,1723159833544,-2463.27423279,0.00018542,2]
[334487173,1723159838507,-236.22265228,0.00013,2]
[334487174,1723159838517,-155.0,0.00013799,2]
[334487175,1723159838526,-1626.46576721,0.00018542,2]
[334487176,1723159838535,-250.0,0.00018996,2]
[334487177,1723159838544,-152.43,0.00019013,2]
[334487178,1723159838553,-2000.0,0.00019052,2]
[334487179,1723159838562,-250.0,0.00019075,2]
[334487180,1723159838572,-1154.76,0.0001913,2]
[334487181,1723159838583,-9136.8637782,0.00019175,2]
[334487182,1723159838595,-1111.2774668,0.00019175,2]
[334487183,1723159838721,-676.114,0.00019175,2]
[334487184,1723159838766,-1700.0,0.00019175,2]
[334487192,1723159840848,-588.2445,0.00019175,2]
[334487193,1723159841066,-4238.71974883,0.00019175,2]
[334487196,1723159841079,-400.0,0.00019175,2]
[334487197,1723159841091,-2007.39029857,0.00019175,2]
[334487199,1723159842860,-3500.0,0.00019175,2]
[334487202,1723159843536,-541.3902076,0.00019175,2]
[334487203,1723159843546,-476.74,0.00019194,2]
[334487204,1723159843556,-150.0,0.00019243,2]
[334487205,1723159843565,-584.88,0.00019257,5]
[334487206,1723159843574,-174.48606675,0.00019319,2]
[334487207,1723159843584,-306.69149948,0.00019398,2]
[334487208,1723159843593,-254.79,0.00019421,2]
[334487209,1723159843602,-150.99,0.00019421,2]
[334487210,1723159843611,-833.52,0.00019474,2]
[334487211,1723159843621,-484.96,0.0001976,2]
[334487212,1723159843630,-2280.20462617,0.000198,2]
[334487213,1723159843641,-500.0,0.000198,2]
[334487214,1723159843782,-380.58780264,0.000198,2]
[334487215,1723159843797,-1120.0399547,0.000198,2]
[334487216,1723159843807,-892.24622414,0.00019899,2]
[334487217,1723159843816,-198.8,0.00020005,2]
[334487218,1723159843825,-810.1,0.00020043,2]
[334487219,1723159843835,-3121.55,0.00020192,2]
[334487220,1723159843844,-159.16,0.00020285,2]
[334487221,1723159843853,-1000.0,0.00020293,2]
[334487222,1723159843862,-159.16,0.00020387,2]
[334487223,1723159843873,-181.62,0.00020468,2]
[334487224,1723159843883,-3703.24239396,0.000205,5]
[334487225,1723159843895,-579.54803453,0.000205,5]
[334487226,1723159843910,-1149.07228572,0.000205,5]
[334487227,1723159843927,-6063.13728579,0.000205,5]
[334487228,1723159843937,-1262.64508069,0.00020899,2]
[334487229,1723159843947,-1015.6512274,0.000215,3]
[334487230,1723159843959,-918.3487726,0.000215,3]
[334487231,1723159843972,-254.79,0.00021685,2]
[334487232,1723159843982,-150.66,0.00021918,2]
[334487233,1723159843992,-222.66089288,0.00022,2]
[334487234,1723159844002,-767.68838294,0.0002283,2]
[334487235,1723159844015,-232.31161706,0.0002283,2]
[334487236,1723159844025,-181.62,0.00023026,2]
[334487237,1723159844036,-180.0,0.00023205,2]
[334487238,1723159844048,-563.35,0.00023534,2]
[334487239,1723159844059,-420.82,0.00023534,2]
[334487240,1723159844069,-676.1026,0.000237,2]
[334487241,1723159844079,-900.0,0.000237,8]
[334487242,1723159844088,-783.8257086,0.00023765,4]
[334487244,1723159844098,-783.8257086,0.00023765,4]
[334487248,1723159844110,-3359.42875215,0.00023785,2]
[334487251,1723159844120,-3767.59533793,0.00023785,2]
[334487254,1723159844131,-496.2367825,0.00023785,2]
[334487256,1723159844142,-279.92356222,0.00023785,2]
[334487262,1723159846589,-347.83,0.00023785,2]
[334487263,1723159846600,-729.12371714,0.00023785,2]
[334487264,1723159846612,-939.883994,0.00023785,2]
[334487265,1723159846623,-1403.92489879,0.00023785,2]
[334487266,1723159846634,-1753.85498398,0.00023785,2]
[334487267,1723159846660,-134.07931893,0.00023785,2]
[334487268,1723159846671,-859.8516,0.00023788,2]
[334487269,1723159846680,-40.12268665,0.000238,8]
[334487270,1723159846692,-404.48230813,0.000238,8]
[334487271,1723159846703,-1455.39500522,0.000238,8]
[334487272,1723159846712,-724.02293505,0.0002388,2]
[334487273,1723159846724,-1185.57,0.0002388,2]
[334487274,1723159846736,-6769.77585128,0.0002388,2]
[334487275,1723159846748,-50631.32823577,0.0002388,2]
[334487276,1723159846757,-2900.0,0.000239,8]
[334487277,1723159846766,-697.9978,0.00023909,2]
[334487278,1723159846777,-254.79,0.00023948,2]
[334487279,1723159846786,-5606.9916,0.00024008,14]
[334487280,1723159846798,-1000.0,0.00024009,2]
[334487281,1723159846808,-438.7811,0.00024009,2]
[334487282,1723159846818,-4863.2503,0.00024009,2]
[334487283,1723159846827,-7387.9393,0.00024009,2]
[334487284,1723159846836,-442.03697097,0.00024099,4]
[334487285,1723159846846,-500.0,0.00024109,5]
[334487286,1723159846856,-502.99315339,0.00024109,5]
[334487287,1723159846865,-500.0,0.00024109,5]
[334487288,1723159846874,-500.0,0.00024109,5]
[334487289,1723159846883,-500.0,0.00024109,5]
[334487290,1723159846892,-500.0,0.00024109,5]
[334487291,1723159846902,-500.0,0.00024109,5]
[334487292,1723159846911,-500.0,0.00024109,5]
[334487293,1723159846923,-500.0,0.00024109,5]
[334487294,1723159846935,-500.0,0.00024109,5]
[334487295,1723159846944,-500.0,0.00024109,5]
[334487296,1723159846955,-458.65513969,0.00024109,5]
[334487297,1723159846971,-281.86,0.00024109,5]
[334487298,1723159846980,-500.0,0.00024109,5]
[334487299,1723159846989,-500.0,0.00024109,5]
[334487300,1723159846998,-500.0,0.00024109,5]
[334487301,1723159847008,-500.0,0.00024109,5]
[334487302,1723159847018,-500.0,0.00024109,5]
[334487303,1723159847027,-500.0,0.00024109,5]
[334487304,1723159847036,-629.38947464,0.00024109,5]
[334487305,1723159847046,-500.0,0.00024109,5]
[334487306,1723159847055,-500.0,0.00024109,5]
[334487307,1723159847065,-500.0,0.00024109,5]
[334487308,1723159847074,-500.0,0.00024109,5]
[334487309,1723159847083,-500.0,0.00024109,5]
[334487310,1723159847092,-500.0,0.00024109,5]
[334487311,1723159847101,-500.0,0.00024109,5]
[334487312,1723159847110,-157.35,0.00024109,5]
[334487313,1723159847119,-500.0,0.00024109,5]
[334487314,1723159847128,-590.22926827,0.00024109,5]
[334487315,1723159847137,-500.0,0.00024109,5]
[334487316,1723159847147,-500.0,0.00024109,5]
[334487317,1723159847159,-500.0,0.00024109,5]
[334487318,1723159847170,-500.0,0.00024109,5]
[334487319,1723159847179,-476.36,0.00024109,5]
[334487320,1723159847188,-536.44,0.00024109,5]
[334487321,1723159847197,-500.0,0.00024109,5]
[334487322,1723159847207,-500.0,0.00024109,5]
[334487323,1723159847216,-500.0,0.00024109,5]
[334487324,1723159847226,-500.0,0.00024109,5]
[334487325,1723159847235,-500.0,0.00024109,5]
[334487326,1723159847244,-500.0,0.00024109,5]
[334487327,1723159847253,-500.0,0.00024109,5]
[334487328,1723159847262,-583.21,0.00024109,5]
[334487329,1723159847271,-500.0,0.00024109,5]
[334487330,1723159847280,-636.55,0.00024109,5]
[334487331,1723159847289,-461.95,0.00024109,5]
[334487332,1723159847298,-500.0,0.00024109,5]
[334487333,1723159847307,-250.68,0.00024109,5]
[334487334,1723159847316,-500.0,0.00024109,5]
[334487335,1723159847325,-500.0,0.00024109,5]
[334487336,1723159847335,-503.03134737,0.00024109,5]
[334487337,1723159847344,-500.0,0.00024109,5]
[334487338,1723159847354,-285.18541169,0.00024109,5]
[334487339,1723159847363,-500.0,0.00024109,5]
[334487340,1723159847372,-500.0,0.00024109,5]
[334487341,1723159847381,-500.0,0.00024109,5]
[334487342,1723159847391,-500.0,0.00024109,5]
[334487343,1723159847400,-500.0,0.00024109,5]
[334487344,1723159847409,-153.35006817,0.00024109,5]
[334487345,1723159847419,-500.0,0.00024109,5]
[334487346,1723159847428,-500.0,0.00024109,5]
[334487347,1723159847438,-500.0,0.00024109,5]
[334487348,1723159847447,-500.0,0.00024109,5]
[334487349,1723159847456,-500.0,0.00024109,5]
[334487350,1723159847465,-500.0,0.00024109,5]
[334487351,1723159847475,-500.0,0.00024109,5]
[334487352,1723159847483,-500.0,0.00024109,5]
[334487353,1723159847492,-500.0,0.00024109,5]
[334487354,1723159847502,-500.0,0.00024109,5]
[334487355,1723159847511,-501.90955626,0.00024109,5]
[334487356,1723159847520,-500.0,0.00024109,5]
[334487357,1723159847529,-500.0,0.00024109,5]
[334487358,1723159847539,-500.0,0.00024109,5]
[334487359,1723159847548,-500.0,0.00024109,5]
[334487360,1723159847557,-501.22847419,0.00024109,5]
[334487361,1723159847566,-500.0,0.00024109,5]
[334487362,1723159847575,-500.0,0.00024109,5]
[334487363,1723159847585,-500.0,0.00024109,5]
[334487364,1723159847594,-500.0,0.00024109,5]
[334487365,1723159847604,-500.0,0.00024109,5]
[334487366,1723159847614,-500.0,0.00024109,5]
[334487367,1723159847623,-434.37,0.00024109,5]
[334487368,1723159847632,-500.0,0.00024109,5]
[334487369,1723159847641,-553.04,0.00024109,5]
[334487370,1723159847651,-500.0,0.00024109,5]
[334487371,1723159847660,-500.0,0.00024109,5]
[334487372,1723159847672,-500.0,0.00024109,5]
[334487373,1723159847681,-500.0,0.00024109,5]
[334487374,1723159847690,-500.0,0.00024109,5]
[334487375,1723159847699,-500.0,0.00024109,5]
[334487376,1723159847708,-612.75314631,0.00024109,5]
[334487377,1723159847717,-200.0,0.00024109,5]
[334487378,1723159847727,-500.0,0.00024109,5]
[334487379,1723159847737,-500.0,0.00024109,5]
[334487380,1723159847747,-501.97206715,0.00024109,5]
[334487381,1723159847756,-500.0,0.00024109,5]
[334487382,1723159847765,-500.0,0.00024109,5]
[334487383,1723159847774,-500.0,0.00024109,5]
[334487384,1723159847783,-599.92,0.00024109,5]
[334487385,1723159847792,-500.0,0.00024109,5]
[334487386,1723159847802,-303.48089643,0.00024109,5]
[334487387,1723159847811,-500.0,0.00024109,5]
[334487388,1723159847820,-501.25808201,0.00024109,5]
[334487389,1723159847829,-500.0,0.00024109,5]
[334487390,1723159847839,-500.0,0.00024109,5]
[334487391,1723159847847,-589.87,0.00024109,5]
[334487392,1723159847856,-584.90653345,0.00024109,5]
[334487393,1723159847865,-500.0,0.00024109,5]
[334487394,1723159847875,-500.0,0.00024109,5]
[334487395,1723159847884,-500.0,0.00024109,5]
[334487396,1723159847893,-500.0,0.00024109,5]
[334487397,1723159847902,-500.0,0.00024109,5]
[334487398,1723159847911,-500.0,0.00024109,5]
[334487399,1723159847921,-500.0,0.00024109,5]
[334487400,1723159847930,-500.0,0.00024109,5]
[334487401,1723159847940,-500.0,0.00024109,5]
[334487402,1723159847949,-500.0,0.00024109,5]
[334487403,1723159847959,-500.0,0.00024109,5]
[334487404,1723159847973,-500.91292177,0.00024109,5]
[334487405,1723159847982,-512.47,0.00024109,5]
[334487406,1723159847991,-500.0,0.00024109,5]
[334487407,1723159848001,-500.0,0.00024109,5]
[334487408,1723159848010,-558.54,0.00024109,5]
[334487409,1723159848019,-643.96,0.00024109,5]
[334487410,1723159848029,-500.0,0.00024109,5]
[334487411,1723159848038,-500.0,0.00024109,5]
[334487412,1723159848049,-500.0,0.00024109,5]
[334487413,1723159848059,-592.64,0.00024109,5]
[334487414,1723159848068,-500.0,0.00024109,5]
[334487415,1723159848077,-500.0,0.00024109,5]
[334487416,1723159848087,-504.41465516,0.00024109,5]
[334487417,1723159848096,-500.0,0.00024109,5]
[334487418,1723159848105,-500.0,0.00024109,5]
[334487419,1723159848261,-500.0,0.00024109,5]
[334487420,1723159848271,-500.0,0.00024109,5]
[334487421,1723159848282,-500.0,0.00024109,5]
[334487422,1723159848291,-500.0,0.00024109,5]
[334487423,1723159848301,-513.45,0.00024109,5]
[334487424,1723159848310,-500.0,0.00024109,5]
[334487425,1723159848319,-500.0,0.00024109,5]
[334487426,1723159848329,-500.0,0.00024109,5]
[334487427,1723159848338,-500.0,0.00024109,5]
[334487428,1723159848348,-500.0,0.00024109,5]
[334487429,1723159848357,-500.0,0.00024109,5]
[334487430,1723159848366,-500.0,0.00024109,5]
[334487431,1723159848376,-552.06,0.00024109,5]
[334487432,1723159848385,-623.82,0.00024109,5]
[334487433,1723159848394,-500.0,0.00024109,5]
[334487434,1723159848408,-500.0,0.00024109,5]
[334487435,1723159848417,-500.0,0.00024109,5]
[334487436,1723159848430,-500.0,0.00024109,5]
[334487437,1723159848440,-518.44,0.00024109,5]
[334487438,1723159848449,-500.0,0.00024109,5]
[334487439,1723159848458,-150.0,0.00024109,5]
[334487440,1723159848467,-504.30414091,0.00024109,5]
[334487441,1723159848476,-500.0,0.00024109,5]
[334487442,1723159848486,-500.0,0.00024109,5]
[334487443,1723159848495,-500.0,0.00024109,5]
[334487444,1723159848505,-500.0,0.00024109,5]
[334487445,1723159848514,-506.56651475,0.00024109,5]
[334487446,1723159848523,-500.0,0.00024109,5]
[334487447,1723159848533,-500.0,0.00024109,5]
[334487448,1723159848542,-500.0,0.00024109,5]
[334487449,1723159848551,-500.0,0.00024109,5]
[334487450,1723159848560,-500.0,0.00024109,5]
[334487451,1723159848569,-500.0,0.00024109,5]
[334487452,1723159848579,-500.0,0.00024109,5]
[334487453,1723159848588,-500.0,0.00024109,5]
[334487454,1723159848597,-151.0,0.00024109,7]
[334487455,1723159848606,-500.0,0.00024109,5]
[334487456,1723159848615,-644.42,0.00024109,5]
[334487457,1723159848624,-500.0,0.00024109,5]
[334487458,1723159848634,-500.0,0.00024109,5]
[334487459,1723159848643,-500.0,0.00024109,5]
[334487460,1723159848652,-500.0,0.00024109,5]
[334487461,1723159848661,-500.0,0.00024109,5]
[334487462,1723159848672,-500.0,0.00024109,5]
[334487463,1723159848681,-500.0,0.00024109,5]
[334487464,1723159848691,-500.0,0.00024109,5]
[334487465,1723159848700,-500.0,0.00024109,5]
[334487466,1723159848709,-500.0,0.00024109,5]
[334487467,1723159848718,-500.0,0.00024109,5]
[334487468,1723159848728,-1285.02,0.00024109,5]
[334487469,1723159848737,-500.0,0.00024109,5]
[334487470,1723159848747,-1285.02,0.00024109,5]
[334487471,1723159848756,-500.0,0.00024109,5]
[334487472,1723159848766,-500.0,0.00024109,5]
[334487473,1723159848775,-500.0,0.00024109,5]
[334487474,1723159848785,-308.19,0.00024109,5]
[334487475,1723159848795,-500.0,0.00024109,5]
[334487476,1723159848804,-231.49,0.00024109,5]
[334487477,1723159848813,-2035.16,0.00024109,5]
[334487478,1723159848823,-2035.16,0.00024109,5]
[334487479,1723159848832,-532.81,0.00024109,5]
[334487480,1723159848841,-584.19140771,0.00024109,5]
[334487481,1723159848851,-1606.17,0.00024109,5]
[334487482,1723159848859,-1606.17,0.00024109,5]
[334487483,1723159848869,-500.0,0.00024109,5]
[334487484,1723159848878,-469.55292437,0.00024109,5]
[334487485,1723159848888,-500.0,0.00024109,5]
[334487486,1723159848897,-500.0,0.00024109,5]
[334487487,1723159848907,-500.0,0.00024109,5]
[334487488,1723159848916,-500.0,0.00024109,5]
[334487489,1723159848928,-500.0,0.00024109,5]
[334487490,1723159848937,-500.0,0.00024109,5]
[334487491,1723159848947,-500.0,0.00024109,5]
[334487492,1723159848957,-429.95,0.00024109,5]
[334487493,1723159848971,-500.0,0.00024109,5]
[334487494,1723159848980,-500.0,0.00024109,5]
[334487495,1723159848989,-500.0,0.00024109,5]
[334487496,1723159848999,-500.0,0.00024109,5]
[334487497,1723159849011,-500.0,0.00024109,5]
[334487498,1723159849020,-362.87,0.00024109,5]
[334487499,1723159849030,-500.0,0.00024109,5]
[334487500,1723159849042,-500.0,0.00024109,5]
[334487501,1723159849052,-500.0,0.00024109,5]
[334487502,1723159849062,-500.0,0.00024109,5]
[334487503,1723159849071,-500.0,0.00024109,5]
[334487504,1723159849081,-500.0,0.00024109,5]
[334487505,1723159849090,-500.0,0.00024109,5]
[334487506,1723159849100,-287.42,0.00024109,5]
[334487507,1723159849109,-500.0,0.00024109,5]
[334487508,1723159849118,-500.0,0.00024109,5]
[334487509,1723159849127,-500.0,0.00024109,5]
[334487510,1723159849137,-500.0,0.00024109,5]
[334487511,1723159849146,-500.0,0.00024109,5]
[334487512,1723159849156,-500.0,0.00024109,5]
[334487513,1723159849166,-255.69,0.00024109,5]
[334487514,1723159849179,-500.0,0.00024109,5]
[334487515,1723159849188,-500.0,0.00024109,5]
[334487516,1723159849198,-500.0,0.00024109,5]
[334487517,1723159849207,-500.0,0.00024109,5]
[334487518,1723159849217,-612.87,0.00024109,5]
[334487519,1723159849227,-500.0,0.00024109,5]
[334487520,1723159849236,-500.0,0.00024109,5]
[334487521,1723159849246,-355.21,0.00024109,5]
[334487522,1723159849255,-500.0,0.00024109,5]
[334487523,1723159849264,-500.0,0.00024109,5]
[334487524,1723159849274,-500.0,0.00024109,5]
[334487525,1723159849283,-500.0,0.00024109,5]
[334487526,1723159849292,-500.0,0.00024109,5]
[334487527,1723159849301,-500.0,0.00024109,5]
[334487528,1723159849311,-500.0,0.00024109,5]
[334487529,1723159849320,-500.0,0.00024109,5]
[334487530,1723159849329,-500.0,0.00024109,5]
[334487531,1723159849339,-611.03,0.00024109,5]
[334487532,1723159849349,-500.0,0.00024109,5]
[334487533,1723159849358,-500.0,0.00024109,5]
[334487534,1723159849367,-500.0,0.00024109,5]
[334487535,1723159849376,-500.0,0.00024109,5]
[334487536,1723159849386,-500.0,0.00024109,5]
[334487537,1723159849395,-500.0,0.00024109,5]
[334487538,1723159849404,-500.0,0.00024109,5]
[334487539,1723159849414,-500.0,0.00024109,5]
[334487540,1723159849426,-500.0,0.00024109,5]
[334487541,1723159849435,-352.26,0.00024109,5]
[334487542,1723159849445,-547.03,0.00024109,5]
[334487543,1723159849454,-500.0,0.00024109,5]
[334487544,1723159849463,-500.0,0.00024109,5]
[334487545,1723159849473,-379.33,0.00024109,5]
[334487546,1723159849482,-500.0,0.00024109,5]
[334487547,1723159849491,-573.21,0.00024109,5]
[334487548,1723159849501,-150.0,0.00024109,5]
[334487549,1723159849510,-279.25593161,0.00024109,5]
[334487550,1723159849519,-500.0,0.00024109,5]
[334487551,1723159849528,-150.0,0.00024109,5]
[334487552,1723159849537,-500.0,0.00024109,5]
[334487553,1723159849547,-500.0,0.00024109,5]
[334487554,1723159849556,-431.56,0.00024109,5]